[Event "Summer Prague Open-A 2024"]
[Site "Prague"]
[Date "2024.08.02"]
[Round "1.27"]
[White "Czaeczine, Anne"]
[Black "Kolbusovsky, Michal"]
[Result "1-0"]
[Annotator "ChessBase"]
[ECO "B34"]
[WhiteElo "2172"]
[BlackElo "1879"]
[PlyCount "139"]
[EventDate "2024.08.02"]
[EventType "swiss"]
[EventCountry "CZE"]
[SourceTitle "playchess.com"]
[Source "ChessBase"]
[SourceQuality "1"]
[TimeControl "40/5400+30:1800+30"]

1. e4 {[%emt 0:00:02]} c5 {[%emt 0:00:07]} 2. Nf3 {[%emt 0:00:06]} Nc6 {[%emt 0:00:07]} 3. d4 {[%emt 0:00:04]} cxd4 {[%emt 0:00:04]} 4. Nxd4 {[%emt 0:00:03]} g6 {[%emt 0:00:06]} 5. Nxc6 {[%emt 0:00:24]} bxc6 {[%emt 0:00:08]} 6. Qd4 {[%emt 0:00:05]} Nf6 {[%emt 0:00:04]} 7. e5 {[%emt 0:00:03]} Nd5 {[%emt 0:00:04]} 8. Nc3 {[%emt 0:00:04]} Nxc3 {[%emt 0:01:00]} 9. Qxc3 {[%emt 0:00:49]} Bg7 {[%emt 0:00:21]} 10. Bc4 {[%emt 0:20:29]} O-O {[%emt 0:08:34]} 11. O-O {[%emt 0:05:50]} d5 {[%emt 0:12:22]} 12. Be2 {[%emt 0:01:59]} Bf5 {[%emt 0:05:14]} 13. Rd1 {[%emt 0:12:53]} Qc8 {[%emt 0:04:26]} 14. Bf4 {[%emt 0:08:58]} Rd8 {[%emt 0:03:51]} 15. Rd2 {[%emt 0:05:25]} Qe6 {[%emt 0:06:32]} 16. Re1 {[%emt 0:12:53]} Rd7 {[%emt 0:11:56]} 17. b3 {[%emt 0:05:31]} f6 {[%emt 0:05:36]} 18. exf6 {[%emt 0:04:31]} Qxf6 {[%emt 0:02:28]} 19. Qg3 {[%emt 0:02:16]} e5 {[%emt 0:13:10]} 20. Bg5 {[%emt 0:01:53]} Qf8 {[%emt 0:01:43]} 21. c3 {[%emt 0:02:43]} e4 {[%emt 0:02:21]} 22. Qe3 {[%emt 0:03:24]} h6 {[%emt 0:04:50]} 23. Bh4 {[%emt 0:00:11]} g5 {[%emt 0:00:13]} 24. Bg3 {[%emt 0:00:11]} Rad8 {[%emt 0:02:43]} 25. Red1 {[%emt 0:00:59]} Bf6 {[%emt 0:04:28]} 26. h3 {[%emt 0:00:50]} Qg7 {[%emt 0:00:14]} 27. Rc2 {[%emt 0:00:41]} d4 {[%emt 0:00:51]} 28. cxd4 {[%emt 0:00:40]} Bxd4 {[%emt 0:00:58]} 29. Qc1 {[%emt 0:01:58]} e3 {[%emt 0:02:48]} 30. Rc4 {[%emt 0:01:20]} exf2+ {[%emt 0:00:13]} 31. Bxf2 {[%emt 0:00:23]} Bxf2+ {[%emt 0:00:47]} 32. Kxf2 {[%emt 0:00:04]} Rxd1 {[%emt 0:01:06]} 33. Bxd1 {[%emt 0:00:05]} Bd3 {[%emt 0:02:01]} 34. Ra4 {[%emt 0:00:26]} Qf6+ {[%emt 0:00:58]} 35. Bf3 {[%emt 0:00:23]} Re8 {[%emt 0:02:55]} 36. Kg1 {[%emt 0:01:25]} Bb5 {[%emt 0:00:35]} 37. Rg4 {[%emt 0:00:34]} Kg7 {[%emt 0:01:12]} 38. a4 {[%emt 0:02:19]} Bd3 {[%emt 0:01:13]} 39. Qc5 {[%emt 0:00:35]} Qa1+ {[%emt 0:01:07]} 40. Kh2 {[%emt 0:00:15]} Re1 {[%emt 0:00:29]} 41. Qd4+ {[%emt 0:32:56]} Qxd4 {[%emt 0:01:44]} 42. Rxd4 {[%emt 0:00:00]} Bc2 {[%emt 0:00:40]} 43. Bxc6 {[%emt 0:00:00]} Bxb3 {[%emt 0:00:52]} 44. Rd7+ {[%emt 0:00:00]} Kg6 {[%emt 0:02:39]} 45. Rxa7 {[%emt 0:00:00]} g4 {[%emt 0:04:01]} 46. hxg4 {[%emt 0:00:00]} Kg5 {[%emt 0:00:30]} 47. Kg3 {[%emt 0:00:00]} Ra1 {[%emt 0:01:43]} 48. Ra6 {[%emt 0:00:00]} Ra3 {[%emt 0:00:58]} 49. Ra5+ {[%emt 0:00:00]} Kf6 {[%emt 0:00:32]} 50. Kf4 {[%emt 0:00:00]} Bc4 {[%emt 0:01:13]} 51. Rh5 {[%emt 0:00:00]} Kg7 {[%emt 0:00:14]} 52. g5 {[%emt 0:00:00]} hxg5+ {[%emt 0:00:23]} 53. Rxg5+ {[%emt 0:00:00]} Kf6 {[%emt 0:01:25]} 54. Rc5 {[%emt 0:00:00]} Be6 {[%emt 0:00:47]} 55. a5 {[%emt 0:00:00]} Ke7 {[%emt 0:00:12]} 56. Ke5 {[%emt 0:00:19]} Bg4 {[%emt 0:02:02]} 57. Be4 {[%emt 0:02:04]} Kd7 {[%emt 0:00:38]} 58. Rb5 {[%emt 0:00:34]} Kc7 {[%emt 0:00:39]} 59. Rb7+ {[%emt 0:00:52]} Kc8 {[%emt 0:00:11]} 60. Ra7 {[%emt 0:01:32]} Kb8 {[%emt 0:00:37]} 61. Ra8+ {[%emt 0:00:55]} Kc7 {[%emt 0:00:06]} 62. Kf4 {[%emt 0:00:13]} Bd7 {[%emt 0:00:15]} 63. Ra7+ {[%emt 0:01:12]} Kd6 {[%emt 0:00:18]} 64. Ra6+ {[%emt 0:01:19]} Kc7 {[%emt 0:00:26]} 65. Ke5 {[%emt 0:00:08]} Bc8 {[%emt 0:01:38]} 66. Rc6+ {[%emt 0:00:30]} Kd7 {[%emt 0:00:37]} 67. Rc5 {[%emt 0:00:12]} Kd8 {[%emt 0:00:30]} 68. Kd6 {[%emt 0:00:24]} Ra4 {[%emt 0:00:32]} 69. Bd5 {[%emt 0:01:53]} Rg4 {[%emt 0:00:15]} 70. Rxc8+ {[%emt 0:00:06]} 1-0

[Event "Summer Prague Open-A 2024"]
[Site "Prague"]
[Date "2024.08.02"]
[Round "1.28"]
[White "Dzoba, Demian"]
[Black "Zvolensky, David"]
[Result "1/2-1/2"]
[Annotator "ChessBase"]
[ECO "A58"]
[WhiteElo "1878"]
[BlackElo "2167"]
[PlyCount "82"]
[EventDate "2024.08.02"]
[EventType "swiss"]
[EventCountry "CZE"]
[SourceTitle "playchess.com"]
[Source "ChessBase"]
[SourceQuality "1"]
[TimeControl "40/5400+30:1800+30"]

1. d4 {[%emt 0:00:09]} Nf6 {[%emt 0:00:06]} 2. c4 {[%emt 0:00:17]} c5 {[%emt 0:00:06]} 3. d5 {[%emt 0:00:18]} b5 {[%emt 0:00:06]} 4. cxb5 {[%emt 0:00:07]} a6 {[%emt 0:00:08]} 5. bxa6 {[%emt 0:00:04]} g6 {[%emt 0:00:05]} 6. Nc3 {[%emt 0:00:05]} Qa5 {[%emt 0:01:27]} 7. Bd2 {[%emt 0:03:29]} Bxa6 {[%emt 0:00:41]} 8. Ne4 {[%emt 0:07:26]} Qb6 {[%emt 0:02:08]} 9. Nxf6+ {[%emt 0:00:19]} exf6 {[%emt 0:00:01]} 10. Bc3 {[%emt 0:02:16]} Bg7 {[%emt 0:00:14]} 11. Nf3 {[%emt 0:03:09]} O-O {[%emt 0:00:10]} 12. e3 {[%emt 0:02:38]} Bxf1 {[%emt 0:01:09]} 13. Kxf1 {[%emt 0:00:24]} d6 {[%emt 0:00:17]} 14. g3 {[%emt 0:01:32]} Nd7 {[%emt 0:00:31]} 15. Kg2 {[%emt 0:01:19]} Qb7 {[%emt 0:01:06]} 16. e4 {[%emt 0:04:45]} Rfe8 {[%emt 0:01:02]} 17. Re1 {[%emt 0:00:21]} Nb6 {[%emt 0:01:44]} 18. a4 {[%emt 0:10:26]} f5 {[%emt 0:05:19]} 19. exf5 {[%emt 0:02:22]} Bxc3 {[%emt 0:06:03]} 20. Rxe8+ {[%emt 0:00:27]} Rxe8 {[%emt 0:00:02]} 21. bxc3 {[%emt 0:00:01]} gxf5 {[%emt 0:23:35]} 22. Qb1 {[%emt 0:05:48]} Re7 {[%emt 0:02:15]} 23. Qxf5 {[%emt 0:00:35]} Qxd5 {[%emt 0:04:41]} 24. Qg4+ {[%emt 0:02:03]} Kf8 {[%emt 0:01:42]} 25. a5 {[%emt 0:08:37]} Nc4 {[%emt 0:03:17]} 26. Kg1 {[%emt 0:11:09]} Re4 {[%emt 0:06:30]} 27. Qc8+ {[%emt 0:01:40]} Kg7 {[%emt 0:01:59]} 28. a6 {[%emt 0:01:23]} Re6 {[%emt 0:03:41]} 29. a7 {[%emt 0:00:52]} Nb6 {[%emt 0:01:06]} 30. a8=Q {[%emt 0:00:56]} Nxa8 {[%emt 0:00:05]} 31. Qxa8 {[%emt 0:00:10]} Qd3 {[%emt 0:00:01]} 32. Ng5 {[%emt 0:00:54]} Re5 {[%emt 0:01:15]} 33. Qf3 {[%emt 0:00:31]} Qg6 {[%emt 0:00:02]} 34. h4 {[%emt 0:00:59]} Rf5 {[%emt 0:00:30]} 35. Qe4 {[%emt 0:00:45]} Rxg5 {[%emt 0:00:16]} 36. Qc6 {[%emt 0:03:49]} Re5 {[%emt 0:00:43]} 37. Rd1 {[%emt 0:01:37]} Re6 {[%emt 0:01:05]} 38. Qf3 {[%emt 0:02:12]} Rf6 {[%emt 0:01:16]} 39. Qe3 {[%emt 0:00:09]} Re6 {[%emt 0:00:16]} 40. Qf3 {[%emt 0:00:05]} Rf6 {[%emt 0:00:05]} 41. Qe3 {[%emt 0:30:01]} Re6 {[%emt 0:30:07]} 1/2-1/2